fUST/lending_fUST_20250828
["ID","MTS","AMOUNT","RATE_DAILY","PERIOD"]
[381810465,1756356695640,-480.0,0.00022032,2]
[381810466,1756356695652,-480.0,0.00022032,2]
[381810467,1756356695661,-644.18,0.00022032,2]
[381810468,1756356695671,-480.0,0.00022032,2]
[381810469,1756356695680,-480.0,0.00022032,2]
[381810470,1756356695691,-480.0,0.00022032,2]
[381810471,1756356695700,-480.0,0.00022032,2]
[381810472,1756356695712,-480.0,0.00022032,2]
[381810473,1756356695724,-603.2588895,0.00022032,2]
[381810474,1756356695734,-480.0,0.00022032,2]
[381810475,1756356695744,-480.0,0.00022032,2]
[381810476,1756356695755,-511.49589992,0.00022032,2]
[381810477,1756356695765,-617.45,0.00022032,2]
[381810478,1756356695774,-570.55,0.00022032,2]
[381810479,1756356695784,-480.0,0.00022032,2]
[381810480,1756356695794,-616.29,0.00022032,2]
[381810481,1756356695804,-1200.27,0.00022032,2]
[381810482,1756356695814,-480.0,0.00022032,2]
[381810483,1756356695823,-601.73,0.00022032,2]
[381810484,1756356695834,-480.0,0.00022032,2]
[381810485,1756356695843,-480.0,0.00022032,2]
[381810486,1756356695853,-482.93163815,0.00022032,2]
[381810487,1756356695870,-1428.02,0.00022032,2]
[381810488,1756356695882,-480.0,0.00022032,2]
[381810489,1756356695896,-2722.72,0.00022032,2]
[381810490,1756356695905,-480.0,0.00022032,2]
[381810491,1756356695915,-482.40875803,0.00022032,2]
[381810492,1756356695924,-480.0,0.00022032,2]
[381810493,1756356695935,-480.0,0.00022032,2]
[381810494,1756356695944,-480.0,0.00022032,2]
[381810495,1756356695953,-4245.17,0.00022032,2]
[381810496,1756356695962,-480.0,0.00022032,2]
[381810497,1756356695971,-514.09468967,0.00022032,2]
[381810498,1756356695981,-480.0,0.00022032,2]
[381810499,1756356695990,-481.18486328,0.00022032,2]
[381810500,1756356696000,-480.0,0.00022032,2]
[381810501,1756356696009,-541.84,0.00022032,2]
[381810502,1756356696019,-480.0,0.00022032,2]
[381810503,1756356696029,-480.0,0.00022032,2]
[381810504,1756356696039,-480.0,0.00022032,2]
[381810505,1756356696047,-480.0,0.00022032,2]
[381810506,1756356696057,-568.72,0.00022032,2]
[381810507,1756356696067,-1881.85,0.00022032,2]
[381810508,1756356696076,-480.0,0.00022032,2]
[381810509,1756356696085,-487.39970003,0.00022032,2]
[381810510,1756356696102,-662.5,0.00022032,2]
[381810511,1756356696112,-554.0,0.00022032,2]
[381810512,1756356696121,-480.0,0.00022032,2]
[381810513,1756356696131,-480.0,0.00022032,2]
[381810514,1756356696141,-480.0,0.00022034,2]
[381810515,1756356696150,-2673.38,0.00022034,2]
[381810516,1756356696160,-3486.98,0.00022034,2]
[381810517,1756356696170,-1278.52,0.00022034,2]
[381810518,1756356696179,-562.42,0.00022034,2]
[381810519,1756356696188,-1660.3,0.00022034,2]
[381810520,1756356696199,-941.02,0.00022034,2]
[381810521,1756356696208,-811.95,0.00022034,2]
[381810522,1756356696217,-1515.77,0.00022034,2]
[381810523,1756356696227,-592.54,0.00022034,2]
[381810524,1756356696236,-760.29,0.00022034,2]
[381810525,1756356696245,-1016.7,0.00022034,2]
[381810526,1756356696255,-480.0,0.00022034,2]
[381810527,1756356696264,-530.32,0.00022034,2]
[381810528,1756356696274,-1850.6,0.00022034,2]
[381810529,1756356696283,-1997.18,0.00022034,2]
[381810530,1756356696293,-1812.86,0.00022034,2]
[381810531,1756356696302,-542.84,0.00022034,2]
[381810532,1756356696312,-480.0,0.0002204,2]
[381810533,1756356696322,-3000.0,0.0002204,2]
[381810534,1756356696331,-3000.0,0.0002205,2]
[381810535,1756356696341,-150.0,0.0002205,7]
[381810536,1756356696350,-3000.0,0.0002206,2]
[381810537,1756356696359,-3000.0,0.0002207,2]
[381810538,1756356696368,-3000.0,0.0002208,2]
[381810539,1756356696379,-3000.0,0.0002209,2]
[381810540,1756356696389,-3000.0,0.000221,2]
[381810541,1756356696398,-210.28,0.000221,2]
[381810542,1756356696408,-480.0,0.00022102,2]
[381810543,1756356696417,-512.47,0.00022102,2]
[381810544,1756356696426,-480.0,0.00022102,2]
[381810545,1756356696435,-708.4,0.00022102,2]
[381810546,1756356696444,-1021.12,0.00022102,2]
[381810547,1756356696453,-1536.3,0.00022102,2]
[381810548,1756356696462,-853.77,0.00022102,2]
[381810549,1756356696471,-584.77,0.00022102,2]
[381810550,1756356696480,-480.0,0.00022102,2]
[381810551,1756356696490,-545.28,0.00022102,2]
[381810552,1756356696500,-686.06,0.00022102,2]
[381810553,1756356696509,-480.0,0.00022102,2]
[381810554,1756356696519,-694.72,0.00022102,2]
[381810555,1756356696533,-480.0,0.00022102,2]
[381810556,1756356696542,-1147.93,0.00022102,2]
[381810557,1756356696551,-677.79,0.00022102,2]
[381810558,1756356696560,-1123.67,0.00022102,2]
[381810559,1756356696570,-544.12,0.00022102,2]
[381810560,1756356696580,-776.24,0.00022102,2]
[381810561,1756356696589,-480.0,0.00022102,2]
[381810562,1756356696599,-518.51,0.00022102,2]
[381810563,1756356696610,-498.32,0.00022102,2]
[381810564,1756356696619,-1614.03,0.00022102,2]
[381810565,1756356696629,-997.72,0.00022102,2]
[381810566,1756356696638,-586.07,0.00022102,2]
[381810567,1756356696647,-480.0,0.00022102,2]
[381810568,1756356696656,-487.54,0.00022102,2]
[381810569,1756356696665,-535.44,0.00022102,2]
[381810570,1756356696676,-687.49,0.00022102,2]
[381810571,1756356696685,-783.92,0.00022102,2]
[381810572,1756356696695,-855.7,0.00022102,2]
[381810573,1756356696704,-480.0,0.00022102,2]
[381810574,1756356696714,-501.01,0.00022102,2]
[381810575,1756356696723,-543.48,0.00022102,2]
[381810576,1756356696732,-1003.05,0.00022102,2]
[381810577,1756356696742,-1200.0,0.00022102,2]
[381810578,1756356696751,-480.0,0.00022102,2]
[381810579,1756356696761,-1135.77,0.00022102,2]
[381810580,1756356696771,-921.25,0.00022102,2]
[381810581,1756356696780,-736.35,0.00022102,2]
[381810582,1756356696793,-480.0,0.00022102,2]
[381810583,1756356696805,-489.03,0.00022102,2]
[381810584,1756356696815,-1501.6,0.00022102,2]
[381810585,1756356696824,-480.0,0.00022102,2]
[381810586,1756356696834,-586.28,0.00022102,2]
[381810587,1756356696843,-687.31,0.00022102,2]
[381810588,1756356696852,-490.1,0.00022102,2]
[381810589,1756356696862,-543.14,0.00022102,2]
[381810590,1756356696871,-1457.75,0.00022102,2]
[381810591,1756356696880,-480.0,0.00022102,2]
[381810592,1756356696890,-1828.87,0.00022102,2]
[381810593,1756356696899,-480.0,0.00022102,2]
[381810594,1756356696909,-480.0,0.00022102,2]
[381810595,1756356696919,-480.0,0.00022102,2]
[381810596,1756356696928,-503.14,0.00022102,2]
[381810597,1756356696938,-480.0,0.00022102,2]
[381810598,1756356696947,-480.0,0.00022102,2]
[381810599,1756356696956,-749.19,0.00022102,2]
[381810600,1756356696965,-1023.93,0.00022102,2]
[381810601,1756356696975,-4065.99,0.00022102,2]
[381810602,1756356696984,-480.0,0.00022102,2]
[381810603,1756356696994,-571.63,0.00022102,2]
[381810604,1756356697004,-1376.72,0.00022102,2]
[381810605,1756356697014,-2297.07,0.00022102,2]
[381810606,1756356697023,-799.5,0.00022102,2]
[381810607,1756356697032,-480.0,0.00022102,2]
[381810608,1756356697042,-633.53,0.00022102,2]
[381810609,1756356697052,-480.0,0.00022102,2]
[381810610,1756356697061,-480.0,0.00022102,2]
[381810611,1756356697071,-480.0,0.00022102,2]
[381810612,1756356697080,-1204.91,0.00022102,2]
[381810613,1756356697089,-480.0,0.00022102,2]
[381810614,1756356697099,-664.77,0.00022102,2]
[381810615,1756356697109,-691.19,0.00022102,2]
[381810616,1756356697118,-480.0,0.00022106,2]
[381810617,1756356697127,-3421.67,0.00022106,2]
[381810618,1756356697136,-2533.07,0.00022106,2]
[381810619,1756356697145,-480.0,0.00022106,2]
[381810620,1756356697155,-480.0,0.00022106,2]
[381810621,1756356697164,-480.0,0.00022106,2]
[381810622,1756356697173,-618.76,0.00022106,2]
[381810623,1756356697183,-1162.67,0.00022106,2]
[381810624,1756356697192,-348.22120734,0.00022106,2]
[381810625,1756356697202,-990.59,0.00022106,2]
[381810626,1756356697212,-5148.52,0.00022106,2]
[381810627,1756356697221,-611.25,0.00022106,2]
[381810628,1756356697231,-2671.32,0.00022106,2]
[381810629,1756356697240,-649.08,0.00022106,2]
[381810630,1756356697250,-5025.34,0.00022106,2]
[381810631,1756356697259,-668.07,0.00022106,2]
[381810632,1756356697269,-643.924528,0.00022106,2]
[381810633,1756356697565,-1006.575472,0.00022106,2]
[381810634,1756356697574,-480.0,0.00022106,2]
[381810635,1756356697583,-480.0,0.00022108,2]
[381810636,1756356697593,-482.80234624,0.00022108,2]
[381810637,1756356697603,-480.0,0.00022108,2]
[381810638,1756356697612,-480.0,0.00022108,2]
[381810639,1756356697623,-480.0,0.00022108,2]
[381810640,1756356697633,-480.0,0.00022108,2]
[381810641,1756356697643,-480.0,0.00022108,2]
[381810642,1756356697652,-480.0,0.00022108,2]
[381810643,1756356697661,-480.0,0.00022108,2]
[381810644,1756356697671,-480.0,0.00022108,2]
[381810645,1756356697680,-622.73,0.00022108,2]
[381810646,1756356697690,-1146.81,0.00022108,2]
[381810647,1756356697699,-500.14,0.00022108,2]
[381810648,1756356697853,-480.0,0.00022108,2]
[381810649,1756356697863,-480.0,0.00022108,2]
[381810650,1756356697872,-480.0,0.00022108,2]
[381810651,1756356697884,-642.24,0.00022108,2]
[381810652,1756356697894,-480.0,0.00022108,2]
[381810653,1756356697903,-747.48,0.00022108,2]
[381810654,1756356697913,-700.51,0.00022108,2]
[381810655,1756356697922,-290.1613484,0.00022108,2]
[381810656,1756356697932,-480.0,0.00022108,2]
[381810657,1756356697942,-480.0,0.00022108,2]
[381810658,1756356697951,-480.0,0.00022108,2]
[381810659,1756356697961,-480.0,0.00022108,2]
[381810660,1756356697971,-480.0,0.00022108,2]
[381810661,1756356697980,-610.79,0.00022108,2]
[381810662,1756356697990,-697.37,0.00022108,2]
[381810663,1756356697999,-485.48,0.00022108,2]
[381810664,1756356698009,-480.0,0.00022108,2]
[381810665,1756356698018,-480.0,0.00022108,2]
[381810666,1756356698028,-499.7,0.00022108,2]
[381810667,1756356698037,-943.25,0.00022108,2]
[381810668,1756356698046,-480.0,0.00022108,2]
[381810669,1756356698055,-701.41,0.00022108,2]
[381810670,1756356698065,-925.93,0.00022108,2]
[381810671,1756356698074,-480.0,0.00022108,2]
[381810672,1756356698084,-536.25,0.00022108,2]
[381810673,1756356698093,-480.0,0.00022108,2]
[381810674,1756356698102,-845.24,0.00022108,2]
[381810675,1756356698111,-688.62,0.00022108,2]
[381810676,1756356698121,-586.1,0.00022108,2]
[381810677,1756356698131,-480.0,0.00022108,2]
[381810678,1756356698141,-581.67,0.00022108,2]
[381810679,1756356698150,-480.0,0.00022108,2]
[381810680,1756356698159,-480.0,0.00022108,2]
[381810681,1756356698168,-480.0,0.00022108,2]
[381810682,1756356698177,-570.61,0.00022108,2]
[381810683,1756356698187,-1192.99,0.00022108,2]
[381810684,1756356698196,-480.0,0.00022108,2]
[381810685,1756356698206,-782.62,0.00022108,2]
[381810686,1756356698217,-556.25,0.00022108,2]
[381810687,1756356698227,-480.0,0.00022108,2]
[381810688,1756356698236,-883.69,0.00022108,2]
[381810689,1756356698246,-480.0,0.00022108,2]
[381810690,1756356698255,-510.82112732,0.00022108,2]
[381810691,1756356698265,-480.0,0.00022108,2]
[381810692,1756356698274,-480.0,0.00022108,2]
[381810693,1756356698284,-480.0,0.00022108,2]
[381810694,1756356698293,-480.0,0.00022108,2]
[381810695,1756356698303,-888.61,0.00022108,2]
[381810696,1756356698312,-500.0,0.00022108,2]
[381810697,1756356698323,-929.96,0.00022108,2]
[381810698,1756356698332,-480.0,0.00022108,2]
[381810699,1756356698342,-480.0,0.00022108,2]
[381810700,1756356698351,-480.0,0.00022108,2]
[381810701,1756356698361,-532.14,0.00022108,2]
[381810702,1756356698370,-480.0,0.00022108,2]
[381810703,1756356698379,-480.0,0.00022108,2]
[381810704,1756356698388,-480.0,0.00022108,2]
[381810705,1756356698397,-480.0,0.00022108,2]
[381810706,1756356698406,-1377.69,0.00022108,2]
[381810707,1756356698416,-480.0,0.00022108,2]
[381810708,1756356698426,-678.55,0.00022108,2]
[381810709,1756356698438,-480.0,0.00022108,2]
[381810710,1756356698447,-601.87,0.00022108,2]
[381810711,1756356698457,-489.58711133,0.00022108,2]
[381810712,1756356698466,-480.0,0.00022108,2]
[381810713,1756356698475,-517.59,0.00022108,2]
[381810714,1756356698485,-480.0,0.00022108,2]
[381810715,1756356698495,-524.07,0.00022108,2]
[381810716,1756356698504,-480.0,0.00022108,2]
[381810717,1756356698513,-488.41,0.00022108,2]
[381810718,1756356698524,-1224.27,0.00022108,2]
[381810719,1756356698535,-480.0,0.00022108,2]
[381810720,1756356698545,-664.64,0.00022108,2]
[381810721,1756356698555,-892.32,0.00022108,2]
[381810722,1756356698566,-500.0,0.00022108,2]
[381810723,1756356698577,-639.32,0.00022108,2]
[381810724,1756356698587,-480.0,0.00022108,2]
[381810725,1756356698598,-480.0,0.00022108,2]
[381810726,1756356698609,-480.0,0.00022108,2]
[381810727,1756356698620,-480.0,0.00022108,2]
[381810728,1756356698629,-480.0,0.00022108,2]
[381810729,1756356698638,-480.0,0.00022108,2]
[381810730,1756356698648,-480.0,0.00022108,2]
[381810731,1756356698658,-527.37,0.00022108,2]
[381810732,1756356698667,-480.0,0.00022108,2]
[381810733,1756356698677,-221.05608177,0.00022108,2]
[381810734,1756356698686,-610.89,0.00022108,2]
[381810735,1756356698696,-480.0,0.00022108,2]
[381810736,1756356698707,-480.0,0.00022108,2]
[381810737,1756356698716,-507.04,0.00022108,2]
[381810738,1756356698726,-480.0,0.00022108,2]
[381810739,1756356698736,-480.0,0.00022108,2]
[381810740,1756356698746,-541.0,0.00022108,2]
[381810741,1756356698755,-480.0,0.00022108,2]
[381810742,1756356698764,-480.0,0.00022108,2]
[381810743,1756356698775,-935.42,0.00022108,2]
[381810744,1756356698785,-728.91,0.00022108,2]
[381810745,1756356698794,-480.0,0.00022108,2]
[381810746,1756356698803,-480.0,0.00022108,2]
[381810747,1756356698813,-480.0,0.00022108,2]
[381810748,1756356698822,-512.28,0.00022108,2]
[381810749,1756356698831,-480.0,0.00022108,2]
[381810750,1756356698840,-480.0,0.00022108,2]
[381810751,1756356698850,-671.05,0.00022108,2]
[381810752,1756356698859,-480.0,0.00022108,2]
[381810753,1756356698868,-480.0,0.00022108,2]
[381810754,1756356698878,-480.0,0.00022108,2]
[381810755,1756356698887,-480.0,0.00022108,2]
[381810756,1756356698896,-580.47066992,0.00022108,2]
[381810757,1756356698905,-480.0,0.00022108,2]
[381810758,1756356698915,-480.0,0.00022108,2]
[381810759,1756356698924,-528.67,0.00022108,2]
[381810760,1756356698933,-587.59,0.00022108,2]
[381810761,1756356698942,-622.69,0.00022108,2]
[381810762,1756356698951,-706.72,0.00022108,2]
[381810763,1756356698960,-920.23,0.00022108,2]
[381810764,1756356698969,-480.0,0.00022108,2]
[381810765,1756356698979,-480.0,0.00022108,2]
[381810766,1756356698989,-480.0,0.00022108,2]
[381810767,1756356698999,-480.0,0.00022108,2]
[381810768,1756356699009,-729.8,0.00022108,2]
[381810769,1756356699018,-480.0,0.00022108,2]
[381810770,1756356699027,-480.0,0.00022108,2]
[381810771,1756356699036,-1083.02,0.00022108,2]
[381810772,1756356699045,-621.43,0.00022108,2]
[381810773,1756356699055,-480.0,0.00022108,2]
[381810774,1756356699064,-519.69,0.00022108,2]
[381810775,1756356699079,-523.86,0.00022108,2]
[381810776,1756356699089,-561.73,0.00022108,2]
[381810777,1756356699099,-494.37,0.00022108,2]
[381810778,1756356699108,-691.54,0.00022108,2]
[381810779,1756356699118,-480.0,0.00022108,2]
[381810780,1756356699130,-492.19,0.00022108,2]
[381810781,1756356699139,-891.36,0.00022108,2]
[381810782,1756356699148,-683.2,0.00022108,2]
[381810783,1756356699158,-1205.3,0.00022108,2]
[381810784,1756356699168,-641.39,0.00022108,2]
[381810785,1756356699177,-480.0,0.00022108,2]
[381810786,1756356699186,-480.0,0.00022108,2]
[381810787,1756356699195,-480.0,0.00022108,2]
[381810788,1756356699205,-624.84,0.00022108,2]
[381810789,1756356699214,-587.8,0.00022108,2]
[381810790,1756356699224,-480.0,0.00022108,2]
[381810791,1756356699234,-508.69,0.00022108,2]
[381810792,1756356699243,-361.65357286,0.00022108,2]
[381810793,1756356699253,-597.29,0.00022108,2]
[381810794,1756356699262,-656.82,0.00022108,2]
[381810795,1756356699271,-513.64,0.00022108,2]
[381810796,1756356699280,-555.82,0.00022108,2]
[381810797,1756356699290,-480.0,0.00022108,2]
[381810798,1756356699299,-480.0,0.00022108,2]
[381810799,1756356699308,-480.0,0.00022108,2]
[381810800,1756356699318,-852.11,0.00022108,2]
[381810801,1756356699327,-664.95,0.00022108,2]
[381810802,1756356699337,-480.0,0.00022108,2]
[381810803,1756356699346,-480.0,0.00022108,2]
[381810804,1756356699356,-480.0,0.00022108,2]
[381810805,1756356699366,-595.33,0.00022108,2]
[381810806,1756356699376,-480.0,0.00022108,2]
[381810807,1756356699385,-532.87,0.00022108,2]
[381810808,1756356699395,-857.97,0.00022108,2]
[381810809,1756356699404,-631.3,0.00022108,2]
[381810810,1756356699413,-480.0,0.00022108,2]
[381810811,1756356699423,-480.0,0.00022108,2]
[381810812,1756356699432,-3000.0,0.0002211,2]
[381810813,1756356699442,-8091.62,0.00022115,2]
[381810814,1756356699452,-1746.61,0.00022115,2]
[381810815,1756356699462,-6670.63,0.00022115,2]
[381810816,1756356699471,-2000.0,0.00022116,2]
[381810817,1756356699480,-838.04162689,0.00022116,2]
[381810818,1756356699490,-2000.0,0.00022116,2]
[381810819,1756356699500,-662.67725997,0.00022116,2]
[381810820,1756356699510,-2000.0,0.00022116,2]
[381810821,1756356699520,-2000.0,0.00022116,2]
[381810822,1756356699532,-1008.6012517,0.00022116,2]
[381810823,1756356699542,-1560.07191761,0.00022116,2]
[381810824,1756356699551,-2000.0,0.00022116,2]
[381810825,1756356699561,-515.84763676,0.00022116,2]
[381810826,1756356699570,-183.28838346,0.00022116,2]
[381810827,1756356699579,-859.24,0.00022118,2]
[381810828,1756356699596,-1694.54,0.00022118,2]
[381810829,1756356699606,-480.0,0.00022118,2]
[381810830,1756356699615,-160.0,0.00022119,2]
[381810831,1756356699625,-3000.0,0.0002212,2]
[381810832,1756356699634,-480.0,0.0002212,2]
[381810833,1756356699644,-480.0,0.0002212,2]
[381810834,1756356699652,-3000.0,0.0002213,2]
[381810835,1756356699662,-3000.0,0.0002214,2]
[381810836,1756356699671,-3000.0,0.0002215,2]
[381810837,1756356699680,-3000.0,0.0002216,2]
[381810838,1756356699689,-1086.84147924,0.00022168,2]
[381810839,1756356699698,-3000.0,0.0002217,2]
[381810840,1756356699707,-3000.0,0.0002218,2]
[381810841,1756356699716,-150.0,0.00022182,2]
[381810842,1756356699725,-150.0,0.00022188,2]
[381810843,1756356699735,-3000.0,0.0002219,2]
[381810844,1756356699743,-3000.0,0.000222,2]
[381810845,1756356699753,-218.26204497,0.000222,69]
[381810846,1756356699762,-218.26204494,0.000222,69]
[381810847,1756356699771,-500.0,0.00022208,2]
[381810848,1756356699780,-536.12,0.00022208,2]
[381810849,1756356699790,-602.26,0.00022208,2]
[381810850,1756356699799,-1007.62,0.00022208,2]
[381810851,1756356699808,-873.01,0.00022208,2]
[381810852,1756356699818,-3000.0,0.0002221,2]
[381810853,1756356699827,-3000.0,0.0002222,2]
[381810854,1756356699836,-3000.0,0.0002223,2]
[381810855,1756356699846,-2727.86,0.00022232,2]
[381810856,1756356699855,-764.1,0.00022232,2]
[381810857,1756356699864,-1625.43,0.00022232,2]
[381810858,1756356699874,-560.22,0.00022232,2]
[381810859,1756356699883,-1590.14043742,0.00022237,2]
[381810860,1756356699893,-3000.0,0.0002224,2]
[381810861,1756356699902,-500.0,0.00022247,2]
[381810862,1756356699912,-151.0,0.00022247,2]
[381810863,1756356699921,-166.2228321,0.00022247,2]
[381810864,1756356699931,-151.0,0.00022247,2]
[381810865,1756356699940,-153.56321748,0.00022247,2]
[381810866,1756356699952,-151.0,0.00022247,2]
[381810867,1756356699962,-1093.0,0.00022247,2]
[381810868,1756356699971,-500.0,0.00022247,2]
[381810869,1756356699980,-500.0,0.00022247,2]
[381810870,1756356699990,-500.0,0.00022247,2]
[381810871,1756356699999,-3000.0,0.0002225,2]
[381810872,1756356700140,-3000.0,0.0002226,2]
[381810873,1756356700150,-3000.0,0.0002227,2]
[381810874,1756356700160,-173.66815184,0.00022271,2]
[381810875,1756356700170,-3000.0,0.0002228,2]
[381810876,1756356700179,-3000.0,0.0002229,2]
[381810877,1756356700189,-3000.0,0.000223,2]
[381810878,1756356700198,-480.0,0.00022306,2]
[381810879,1756356700208,-939.37,0.00022306,2]
[381810880,1756356700218,-500.63,0.00022306,2]
[381810881,1756356700228,-480.0,0.00022306,2]
[381810882,1756356700237,-480.0,0.00022306,2]
[381810883,1756356700247,-480.0,0.00022306,2]
[381810884,1756356700257,-480.0,0.00022306,2]
[381810885,1756356700267,-586.32772181,0.00022306,2]
[381810886,1756356700276,-480.0,0.00022306,2]
[381810887,1756356700286,-480.0,0.00022306,2]
[381810888,1756356700295,-644.18,0.00022306,2]
[381810889,1756356700306,-480.0,0.00022306,2]
[381810890,1756356700319,-510.06237382,0.00022306,2]
[381810891,1756356700329,-480.0,0.00022306,2]
[381810892,1756356700339,-480.0,0.00022306,2]
[381810893,1756356700349,-480.0,0.00022306,2]
[381810894,1756356700358,-480.0,0.00022306,2]
[381810895,1756356700368,-480.0,0.00022306,2]
[381810896,1756356700379,-617.45,0.00022306,2]
[381810897,1756356700389,-570.55,0.00022306,2]
[381810898,1756356700398,-480.0,0.00022306,2]
[381810899,1756356700408,-616.29,0.00022306,2]
[381810900,1756356700418,-1200.27,0.00022306,2]
[381810901,1756356700428,-480.0,0.00022306,2]
[381810902,1756356700437,-601.73,0.00022306,2]
[381810903,1756356700447,-480.0,0.00022306,2]
[381810904,1756356700456,-480.0,0.00022306,2]
[381810905,1756356700466,-1428.02,0.00022306,2]
[381810906,1756356700476,-480.0,0.00022306,2]
[381810907,1756356700485,-2722.72,0.00022306,2]
[381810908,1756356700494,-480.0,0.00022306,2]
[381810909,1756356700504,-480.0,0.00022306,2]
[381810910,1756356700514,-480.0,0.00022306,2]
[381810911,1756356700525,-480.0,0.00022306,2]
[381810912,1756356700539,-4245.17,0.00022306,2]
[381810913,1756356700548,-480.0,0.00022306,2]
[381810914,1756356700558,-585.04018486,0.00022306,2]
[381810915,1756356700567,-480.0,0.00022306,2]
[381810916,1756356700579,-541.84,0.00022306,2]
[381810917,1756356700589,-480.0,0.00022306,2]
[381810918,1756356700602,-480.0,0.00022306,2]
[381810919,1756356700612,-480.0,0.00022306,2]
[381810920,1756356700622,-482.0082733,0.00022306,2]
[381810921,1756356700633,-568.72,0.00022306,2]
[381810922,1756356700642,-1881.85,0.00022306,2]
[381810923,1756356700653,-480.0,0.00022306,2]
[381810924,1756356700663,-662.5,0.00022306,2]
[381810925,1756356700673,-480.0,0.00022306,2]
[381810926,1756356700684,-554.0,0.00022306,2]
[381810927,1756356700694,-480.0,0.00022306,2]
[381810928,1756356700704,-480.0,0.00022308,2]
[381810929,1756356700715,-2673.38,0.00022308,2]
[381810930,1756356700726,-3486.98,0.00022308,2]
[381810931,1756356700735,-1278.52,0.00022308,2]
[381810932,1756356700745,-562.42,0.00022308,2]
[381810933,1756356700755,-1660.3,0.00022308,2]
[381810934,1756356700764,-941.02,0.00022308,2]
[381810935,1756356700774,-811.95,0.00022308,2]
[381810936,1756356700783,-1515.77,0.00022308,2]
[381810937,1756356700792,-592.54,0.00022308,2]
[381810938,1756356700801,-760.29,0.00022308,2]
[381810939,1756356700812,-1016.7,0.00022308,2]
[381810940,1756356700823,-480.0,0.00022308,2]
[381810941,1756356700835,-530.32,0.00022308,2]
[381810942,1756356700844,-1850.6,0.00022308,2]
[381810943,1756356700853,-1997.18,0.00022308,2]
[381810944,1756356700863,-1812.86,0.00022308,2]
[381810945,1756356700873,-542.84,0.00022308,2]
[381810946,1756356700883,-3000.0,0.0002231,2]
[381810947,1756356700892,-480.0,0.00022314,2]
[381810948,1756356700901,-3000.0,0.0002232,2]
[381810949,1756356700910,-187.0,0.00022323,2]
[381810950,1756356700920,-3000.0,0.0002233,2]
[381810951,1756356700929,-3786.360182,0.0002234,2]
[381810952,1756356700938,-224.052875,0.00022355,3]
[381810953,1756356700948,-179.691714,0.00022355,3]
[381810954,1756356700957,-187.0,0.00022363,2]
[381810955,1756356700967,-2500.0,0.00022364,2]
[381810956,1756356700976,-2500.0,0.00022364,2]
[381810957,1756356700986,-2500.0,0.00022364,2]
[381810958,1756356700996,-2087.59133941,0.00022364,2]
[381810959,1756356701005,-2500.0,0.00022364,2]
[381810960,1756356701014,-480.0,0.00022376,2]
[381810961,1756356701024,-512.47,0.00022376,2]
[381810962,1756356701033,-480.0,0.00022376,2]
[381810963,1756356701043,-708.4,0.00022376,2]
[381810964,1756356701052,-1021.12,0.00022376,2]